bitfinex-derivatives/quotes_SOLF0:USTF0_20250311
["timestamp","ask_amount","ask_price","bid_price","bid_amount"]
[1741661477472,8.3304,120.1,120.05,41.66]
[1741661477679,0.05731284,120.07,120.05,41.71594087]
[1741661478078,8.3316,120.09,120.05,41.71594087]
[1741661478284,0.06170744,120.07,120.05,41.71594087]
[1741661478578,31.58254074,120.12,120.05,41.71594087]
[1741661478776,0.0611228,120.07,120.05,41.71594087]
[1741661478978,31.58254074,120.12,120.05,41.71594087]
[1741661479168,0.06138867,120.07,120.05,41.71594087]
[1741661482884,27.53624074,120.14,120.05,41.71594087]
[1741661482885,2.0362,120.18,120.06,27.53624074]
[1741661483087,46.16034335,120.19,120.1,27.53624074]
[1741661483381,46.16034335,120.19,120.11,43.7845]
[1741661483582,8.3266,120.16,120.11,10.4941]
[1741661483777,8.3266,120.16,120.11,2.1645]
[1741661483970,46.16034335,120.19,120.12,0.05635132]
[1741661484174,46.16034335,120.19,120.14,27.53624074]
[1741661484579,46.16034335,120.19,120.16,8.3257]
[1741661484981,46.16034335,120.19,120.15,0.05490556]
[1741661485179,46.16034335,120.19,120.15,8.38150556]
[1741661485386,69.13624074,120.24,120.15,0.05490556]
[1741661485583,137.26916398,120.29,120.15,0.05490556]
[1741661485584,137.26916398,120.29,120.22,27.53624074]
[1741661485779,130.68116398,120.29,120.25,27.53624074]
[1741661485984,128.10626398,120.29,120.25,27.53624074]
[1741661486182,128.10626398,120.29,120.26,41.6]
[1741661486686,372.95524982,120.32,120.27,27.53624074]
[1741661486889,372.95524982,120.32,120.29,27.53624074]
[1741661487082,372.95524982,120.32,120.27,27.53624074]
[1741661487283,372.95524982,120.32,120.27,27.59270107]
[1741661487590,372.95524982,120.32,120.28,8.3178]
[1741661487783,372.95524982,120.32,120.27,0.05646033]
[1741661488280,8.3144,120.34,120.27,0.05646033]
[1741661488480,52.771635,120.36,120.27,8.37496033]
[1741661488684,44.459235,120.36,120.26,41.6]
[1741661488884,44.459235,120.36,120.3,0.05312496]
[1741661489383,8.3136,120.35,120.3,0.05312496]
[1741661489583,44.459235,120.36,120.3,0.05312496]
[1741661490080,44.459235,120.34,120.31,22.60530799]
[1741661490278,41.54,120.33,120.31,19.31320799]
[1741661490480,41.54,120.37,120.31,19.31320799]
[1741661490683,44.459235,120.36,120.31,19.37069985]
[1741661491688,276.8815,120.39,120.31,0.05749186]
[1741661491889,2.1015,120.39,120.31,0.05749186]
[1741661492190,10.3398,120.38,120.32,41.52]
[1741661492790,41.52,120.37,120.34,0.05574663]
[1741661493093,44.459235,120.35,120.29,89.74921462]
[1741661493286,8.315,120.33,120.29,89.74921462]
[1741661493595,41.5,120.33,120.29,89.74921462]
[1741661493788,8.3151,120.32,120.29,89.74921462]
[1741661493988,41.5,120.33,120.29,89.74921462]
[1741661494395,0.05471669,120.32,120.3,0.05889084]
[1741661495293,41.55471669,120.32,120.24,89.74921462]
[1741661495593,44.459235,120.31,120.24,89.74921462]
[1741661495993,8.3167,120.3,120.24,98.06971462]
[1741661496192,44.459235,120.31,120.21,2.0152]
[1741661496387,1.9853,120.3,120.21,2.0152]
[1741661496588,0.06093016,120.27,120.25,0.06132094]
[1741661499593,0.06093016,120.27,120.26,8.3193]
[1741661500197,41.46,120.33,120.26,41.46]
[1741661500399,41.46,120.33,120.29,8.3171]
[1741661500694,8.3151,120.32,120.26,41.46]
[1741661500891,41.46,120.33,120.26,41.46]
[1741661501490,0.05446783,120.31,120.28,0.06230273]
[1741661503400,44.51370283,120.31,120.28,0.06230273]
[1741661503794,8.317,120.3,120.28,0.06230273]
[1741661503998,0.05446783,120.31,120.28,0.06230273]
[1741661504199,0.05446783,120.31,120.3,8.3165]
[1741661504694,2.0048,120.38,120.28,44.52153773]
[1741661504888,41.44,120.39,120.3,44.459235]
[1741661505088,4.2954,120.41,120.32,44.459235]
[1741661505293,4.2954,120.41,120.31,41.44]
[1741661505899,44.459235,120.4,120.35,0.06287469]
[1741661506100,85.899235,120.4,120.35,0.06287469]
[1741661506301,41.44,120.4,120.35,0.06287469]
[1741661506504,8.3114,120.38,120.35,0.06287469]
[1741661506897,48.754635,120.41,120.35,0.06287469]
[1741661507101,4.2954,120.41,120.35,0.06287469]
[1741661507299,274.42,120.45,120.35,0.06287469]
[1741661507601,85.899235,120.43,120.31,41.44]
[1741661508297,85.899235,120.43,120.36,0.05763205]
[1741661508798,8.3087,120.42,120.37,8.3111]
[1741661509002,44.459235,120.41,120.31,41.44]
[1741661509203,44.459235,120.41,120.38,0.06327691]
[1741661509500,8.3091,120.41,120.36,8.3119]
[1741661509697,8.3091,120.41,120.38,0.05576943]
[1741661510098,94.207035,120.43,120.38,8.36656943]
[1741661510298,41.44,120.43,120.38,0.05576943]
[1741661510803,41.42,120.43,120.38,0.05576943]
[1741661511203,8.3088,120.42,120.38,0.05576943]
[1741661513799,41.4,120.42,120.39,8.3096]
[1741661514305,41.4,120.42,120.38,8.36646943]
[1741661514500,41.4,120.42,120.38,0.05576943]
[1741661515006,2.1612,120.44,120.38,0.05576943]
[1741661516305,2.1612,120.44,120.35,89.74921462]
[1741661516500,27.32261281,120.4,120.35,89.74921462]
[1741661516704,68.70261281,120.4,120.35,89.74921462]
[1741661517407,2.1935,120.39,120.37,89.74921462]
[1741661517607,2.25661327,120.39,120.37,86.45811462]
[1741661517803,2.1745,120.38,120.37,83.16711462]
[1741661518704,10.4855,120.38,120.37,83.16711462]
[1741661519904,2.1745,120.38,120.36,0.05581154]
[1741661520206,8.3117,120.37,120.36,0.05581154]
[1741661520511,0.06311327,120.39,120.36,0.05581154]
[1741661521410,0.06311327,120.39,120.37,25.21793403]
[1741661521807,8.311,120.38,120.37,25.21793403]
[1741661522006,0.06311327,120.39,120.37,25.21793403]
[1741661523011,8.311,120.38,120.37,25.21793403]
[1741661523511,8.311,120.38,120.36,25.27374557]
[1741661523712,8.3117,120.37,120.36,25.27374557]
[1741661524308,49.6517,120.37,120.36,25.27374557]
[1741661525014,41.34,120.37,120.36,25.27374557]
[1741661525913,41.34,120.37,120.36,0.05581154]
[1741661526215,49.6517,120.37,120.36,0.05581154]
[1741661526416,41.34,120.37,120.27,4.1753]
[1741661526809,8.3141,120.34,120.29,8.3169]
[1741661527305,27.32261281,120.36,120.29,8.3169]
[1741661527516,0.05374845,120.33,120.3,0.05727919]
[1741661528010,4.1671,120.4,120.31,41.32]
[1741661528215,4.1671,120.4,120.35,8.3129]
[1741661528814,12.477,120.4,120.35,8.3129]
[1741661529014,4.1671,120.4,120.35,41.32]
[1741661529209,0.06365411,120.39,120.36,0.05326442]
[1741661530117,0.06365411,120.39,120.37,41.32]
[1741661530310,2.1735,120.46,120.37,41.32]
[1741661531012,2.1735,120.46,120.42,8.3081]
[1741661531206,27.32261281,120.47,120.4,41.32]
[1741661531513,27.32261281,120.47,120.42,0.06305927]
[1741661532016,27.32261281,120.45,120.42,0.06305927]
[1741661532220,41.3,120.44,120.42,0.06305927]
[1741661532717,8.3075,120.43,120.42,0.06305927]
[1741661533121,49.607,120.44,120.42,0.06305927]
[1741661534009,8.3075,120.43,120.42,0.06305927]
[1741661534609,8.3103,120.39,120.34,2.1374]
[1741661534817,4.2437,120.42,120.34,2.1374]
[1741661535214,8.3091,120.41,120.34,2.1374]
[1741661535719,0.05720704,120.39,120.36,0.05648895]
[1741661538621,8.3076,120.43,120.37,41.28]
[1741661538822,27.32261281,120.45,120.37,41.28]
[1741661539120,27.32261281,120.45,120.38,8.3109]
[1741661539121,8.3079,120.43,120.38,8.3109]
[1741661539319,27.32261281,120.45,120.37,41.28]
[1741661539518,27.32261281,120.45,120.38,8.3108]
[1741661539711,27.32261281,120.45,120.4,0.05369152]
[1741661540314,8.3087,120.42,120.4,0.05369152]
[1741661541016,8.308,120.43,120.4,0.05369152]
[1741661541223,27.32261281,120.45,120.4,0.05369152]
[1741661542025,4.0773,120.46,120.4,0.05369152]
[1741661542218,4.0773,120.46,120.42,8.3078]
[1741661542419,194.0,120.52,120.4,0.05369152]
[1741661542622,8.3066,120.45,120.4,8.3091]
[1741661542828,27.32261281,120.45,120.43,0.05624466]
[1741661543016,27.32261281,120.45,120.38,2.007]
[1741661543222,8.3083,120.42,120.38,8.3109]
[1741661543521,41.28,120.44,120.37,41.28]
[1741661544527,0.05876555,120.41,120.38,0.05607149]
[1741661545525,0.05876555,120.41,120.38,8.36707149]
[1741661545730,0.05876555,120.41,120.38,0.05607149]
[1741661547032,8.36806555,120.41,120.38,0.05607149]
[1741661547422,0.05876555,120.41,120.38,0.05607149]
[1741661549337,27.38137836,120.41,120.38,0.05607149]
[1741661549536,41.26,120.4,120.38,0.05607149]
[1741661549736,49.5701,120.4,120.38,0.05607149]
[1741661549929,41.26,120.4,120.38,0.05607149]
[1741661550929,0.05876555,120.41,120.4,8.3096]
[1741661551131,0.05876555,120.41,120.38,0.05607149]
[1741661551539,0.05876555,120.41,120.38,8.36697149]
[1741661551733,0.05876555,120.41,120.38,0.05607149]
[1741661552235,0.05876555,120.41,120.39,8.3099]
[1741661552431,0.05876555,120.41,120.38,0.05607149]
[1741661553932,0.05876555,120.41,120.39,8.3098]
[1741661554527,0.05876555,120.41,120.38,0.05607149]
[1741661556332,27.32261281,120.49,120.4,8.3096]
[1741661556536,27.32261281,120.51,120.41,45.2797]
[1741661557635,27.32261281,120.51,120.45,0.06317633]
[1741661557835,27.32261281,120.51,120.46,8.3054]
[1741661558136,27.32261281,120.51,120.45,0.06317633]
[1741661558438,27.32261281,120.51,120.45,8.36907633]
[1741661558637,8.3031,120.5,120.45,8.36907633]
[1741661558835,8.3031,120.5,120.45,0.06317633]
[1741661559033,27.32261281,120.51,120.46,8.3053]
[1741661559537,27.32261281,120.51,120.47,8.3047]
[1741661559738,8.3027,120.5,120.41,45.2797]
[1741661560139,8.3027,120.5,120.47,0.05959069]
[1741661560336,27.32261281,120.51,120.41,45.2797]
[1741661560538,27.32261281,120.51,120.49,8.3032]
[1741661560745,6.1208,120.52,120.45,41.27977365]
[1741661561038,14.4225,120.52,120.45,41.22]
[1741661561240,14.4225,120.52,120.47,0.05317686]
[1741661561640,6.1208,120.52,120.47,0.05317686]
[1741661562239,14.4225,120.52,120.48,8.304]
[1741661562444,6.1208,120.52,120.48,8.304]
[1741661562741,6.1208,120.52,120.47,0.05317686]
[1741661563046,14.4224,120.52,120.47,0.05317686]
[1741661563243,14.4224,120.52,120.48,8.3041]
[1741661563439,8.302,120.51,120.47,0.05317686]
[1741661563639,6.1208,120.52,120.47,0.05317686]
[1741661564647,27.32261281,120.51,120.47,0.05317686]
[1741661564845,41.2,120.5,120.47,0.05317686]
[1741661565644,8.3039,120.49,120.47,0.05317686]
[1741661566042,41.2,120.5,120.47,0.05317686]
[1741661566239,58.25589187,120.5,120.47,0.05317686]
[1741661567044,8.3039,120.49,120.47,0.05317686]
[1741661568048,23.17669187,120.52,120.47,0.05317686]
[1741661568348,23.17669187,120.52,120.47,8.35747686]
[1741661568649,23.17669187,120.52,120.47,0.05317686]
[1741661569650,8.3031,120.5,120.47,0.05317686]
[1741661570243,8.3035,120.49,120.47,0.05317686]
[1741661570644,17.05589187,120.5,120.47,0.05317686]
[1741661571850,25.35899187,120.5,120.47,0.05317686]
[1741661573337,25.35889187,120.5,120.47,0.05317686]
[1741661573739,17.05589187,120.5,120.47,0.05317686]
[1741661573948,25.35869187,120.5,120.47,0.05317686]
[1741661574650,17.05589187,120.52,120.47,0.05317686]
[1741661574950,17.05589187,120.5,120.47,0.05317686]
[1741661575253,25.35899187,120.5,120.47,0.05317686]
[1741661576947,17.05589187,120.5,120.47,0.05317686]
[1741661578152,8.3038,120.49,120.47,0.05317686]
[1741661578854,25.35899187,120.5,120.47,0.05317686]
[1741661580743,17.05589187,120.5,120.47,0.05317686]
[1741661581556,25.35899187,120.5,120.47,0.05317686]
[1741661582248,8.3034,120.49,120.47,0.05317686]
[1741661582854,25.35999187,120.48,120.47,0.05317686]
[1741661583450,17.05589187,120.5,120.47,0.05317686]
[1741661584756,8.3041,120.48,120.47,0.05317686]
[1741661586253,25.35999187,120.48,120.47,0.05317686]
[1741661586451,17.05589187,120.48,120.41,45.1797]
[1741661586850,8.305,120.47,120.42,8.308]
[1741661587245,17.05589187,120.48,120.42,8.308]
[1741661587448,8.3065,120.45,120.41,12.3483]
[1741661587652,0.05957047,120.46,120.43,0.05539015]
[1741661587952,17.11546234,120.46,120.43,0.05539015]
[1741661588251,0.05957047,120.46,120.43,0.05539015]
[1741661588952,0.05957047,120.46,120.43,8.36249015]
[1741661589157,0.05957047,120.46,120.43,0.05539015]
[1741661589457,0.05957047,120.46,120.44,8.3065]
[1741661589657,0.05957047,120.46,120.43,0.05539015]
[1741661590160,0.05957047,120.46,120.44,58.19589187]
[1741661590359,23.40759187,120.53,120.44,60.18229187]
[1741661590565,17.05589187,120.49,120.44,43.1264]
[1741661591060,17.05589187,120.49,120.45,8.3056]
[1741661591256,17.05589187,120.49,120.44,43.1264]
[1741661591662,17.05589187,120.49,120.46,0.05434175]
[1741661592160,17.05589187,120.49,120.46,8.35924175]
[1741661592362,10.91718179,120.47,120.46,8.35924175]
[1741661592660,10.91718179,120.47,120.46,0.05434175]
[1741661593255,10.91718179,120.47,120.46,8.35974175]
[1741661593454,10.91718179,120.48,120.46,0.05434175]
[1741661593859,10.91718179,120.49,120.46,0.05434175]
[1741661594761,10.91718179,120.49,120.48,8.3041]
[1741661594960,10.91718179,120.5,120.46,0.05434175]
[1741661595457,10.91718179,120.53,120.49,10.91718179]
[1741661595759,10.91718179,120.54,120.49,52.03718179]
[1741661595957,10.91718179,120.54,120.52,8.3013]
[1741661596158,10.91718179,120.53,120.5,0.05300051]
[1741661596360,8.3056,120.46,120.41,8.3087]
[1741661596561,10.91718179,120.43,120.42,7.26329372]
[1741661597159,10.91718179,120.43,120.42,13.26571987]
[1741661597763,10.91718179,120.43,120.42,6.00242615]
[1741661598266,0.05401351,120.44,120.42,6.00242615]
[1741661598463,0.05401351,120.44,120.43,6.00242615]
[1741661598661,0.05401351,120.44,120.43,13.19634207]
[1741661598859,0.05401351,120.44,120.41,0.054268]
[1741661599166,17.06970674,120.43,120.41,0.054268]
[1741661599366,58.16970674,120.43,120.41,0.054268]
[1741661599561,58.16970674,120.43,120.36,4.0859]
[1741661599863,17.06970674,120.4,120.3,58.16970674]
[1741661600164,17.06970674,120.38,120.31,2.0548]
[1741661600365,25.38070674,120.38,120.31,2.0548]
[1741661600668,17.06970674,120.34,120.33,0.05555418]
[1741661601361,17.06970674,120.34,120.25,3.50091357]
[1741661601561,25.38500674,120.32,120.31,137.6167353]
[1741661601764,17.06970674,120.32,120.31,137.6167353]
[1741661603364,0.05577778,120.33,120.31,137.6167353]
[1741661604366,0.05577778,120.33,120.31,178.7367353]
[1741661604566,0.05577778,120.33,120.32,8.3151]
[1741661604767,332.12970674,120.4,120.32,17.06970674]
[1741661604966,58.18970674,120.4,120.36,8.3122]
[1741661605167,2.1523,120.41,120.32,17.06970674]
[1741661605366,17.06970674,120.42,120.31,43.2594]
[1741661605574,17.06970674,120.4,120.32,17.06970674]
[1741661605865,0.06256573,120.37,120.32,17.06970674]
[1741661606070,0.06256573,120.37,120.35,0.06072091]
[1741661606267,0.06256573,120.37,120.36,8.3118]
[1741661606665,0.06256573,120.37,120.35,0.06072091]
[1741661607266,8.37476573,120.37,120.35,0.06072091]
[1741661607570,17.06970674,120.36,120.3,4.2999]
[1741661607771,0.06256573,120.37,120.28,8.3177]
[1741661607772,17.06970674,120.34,120.28,8.3177]
[1741661608161,17.06970674,120.34,120.26,332.24970674]
[1741661608471,17.06970674,120.34,120.26,41.1]
[1741661608870,0.06275501,120.31,120.29,0.05311434]
[1741661610279,17.06970674,120.3,120.29,0.05311434]
[1741661612072,41.16275501,120.31,120.29,0.05311434]
[1741661612775,49.47865501,120.31,120.29,0.05311434]
[1741661612969,41.16275501,120.31,120.29,0.05311434]
[1741661613869,0.06275501,120.31,120.29,0.05311434]
[1741661614269,0.06275501,120.31,120.3,8.3165]
[1741661614474,2.0901,120.37,120.29,0.05311434]
[1741661614665,352.91844863,120.38,120.34,8.3133]
[1741661614870,344.60724863,120.38,120.3,41.1]
[1741661615072,317.2394,120.38,120.3,41.1]
[1741661615272,43.1394,120.38,120.3,41.1]
[1741661615467,41.1,120.38,120.3,41.1]
[1741661615671,0.05254239,120.35,120.33,0.06258139]
[1741661615976,0.05254239,120.35,120.34,8.3137]
[1741661616178,0.05254239,120.35,120.33,0.06258139]
[1741661616378,0.05254239,120.35,120.33,8.37648139]
[1741661616581,0.05254239,120.35,120.33,0.06258139]
[1741661617971,8.3137,120.34,120.33,0.06258139]
[1741661618170,41.1,120.34,120.33,0.06258139]
[1741661618375,0.05254239,120.35,120.33,0.06258139]
[1741661618583,0.05254239,120.35,120.33,8.37648139]
[1741661618782,0.05254239,120.35,120.33,0.06258139]
[1741661619180,4.239e-05,120.35,120.34,8.3137]
[1741661619382,4.1928,120.42,120.34,2.1054]
[1741661619682,2.0754,120.42,120.39,8.3098]
[1741661619880,2.0754,120.42,120.35,41.1]
[1741661620074,70.54324863,120.42,120.35,41.1]
[1741661620280,70.54324863,120.42,120.34,4.1042]
[1741661620472,0.05840235,120.4,120.37,0.06314585]
[1741661620675,8.311,120.38,120.37,0.06314585]
[1741661621080,68.44784863,120.38,120.29,2.0176]
[1741661621285,27.36784863,120.35,120.29,2.0176]
[1741661621889,33.76544863,120.37,120.29,43.0976]
[1741661622188,0.05512401,120.34,120.32,0.05913501]
[1741661622992,41.13512401,120.34,120.32,0.05913501]
[1741661623886,8.3144,120.33,120.26,43.258]
[1741661624188,41.13512401,120.34,120.26,43.258]
[1741661624189,41.08,120.34,120.26,43.258]
[1741661624591,41.08,120.34,120.26,45.2663]
[1741661624986,41.08,120.34,120.26,4.1863]
[1741661625291,0.0606206,120.31,120.29,0.06229983]
[1741661627391,8.3768206,120.31,120.29,0.06229983]
[1741661627696,0.0606206,120.31,120.29,0.06229983]
[1741661627892,49.3965,120.3,120.29,0.06229983]
[1741661628092,41.08,120.3,120.24,8.3205]
[1741661628492,27.36784863,120.29,120.23,8.3212]
[1741661628795,27.36784863,120.29,120.21,6.4933]
[1741661628989,8.3181,120.28,120.23,8.3211]
[1741661629192,0.0601799,120.26,120.24,0.06321148]
[1741661630194,8.32,120.25,120.24,0.06321148]
[1741661631196,27.36784863,120.25,120.17,6.3703]
[1741661631593,8.3211,120.24,120.19,8.3238]
[1741661631898,27.36784863,120.25,120.17,6.3703]
[1741661632099,68.42784863,120.26,120.17,6.3703]
[1741661632397,0.05874469,120.22,120.2,0.05837875]
[1741661632593,41.08,120.21,120.12,91.25516163]
[1741661632794,41.08,120.21,120.12,93.38586163]
[1741661633497,41.08,120.21,120.12,94.83381037]
[1741661633697,0.05655609,120.18,120.15,8.38508782]
[1741661633898,0.05655609,120.18,120.15,0.05828782]
[1741661634398,8.38165609,120.18,120.15,0.05828782]
[1741661634594,41.08,120.17,120.15,0.05828782]
[1741661636092,0.05655609,120.18,120.15,0.05828782]
[1741661636899,4.1134,120.25,120.15,0.05828782]
[1741661637101,45.1934,120.25,120.15,27.36784863]
[1741661638096,0.05592013,120.21,120.15,27.36784863]
[1741661638402,0.05592013,120.21,120.19,0.0633784]
[1741661638594,0.05592013,120.21,120.14,41.08]
[1741661638795,0.05592013,120.21,120.19,0.05548562]
[1741661639002,0.05592013,120.21,120.14,41.08]
[1741661639299,0.05592013,120.21,120.19,8.3236]
[1741661639502,0.05592013,120.21,120.16,0.05898255]
[1741661639797,8.37902013,120.21,120.16,0.05898255]
[1741661639996,41.13592013,120.21,120.16,0.05898255]
[1741661640597,27.36784863,120.2,120.16,0.05898255]
[1741661641001,4.2791,120.19,120.16,0.05898255]
[1741661641200,12.6033,120.19,120.16,0.05898255]
[1741661641701,4.2791,120.19,120.16,0.05898255]
[1741661642298,8.3268,120.16,120.11,8.3295]
[1741661643000,41.08,120.17,120.14,8.3271]
[1741661643197,41.08,120.17,120.07,238.3411]
[1741661643397,41.08,120.17,120.14,0.05667645]
[1741661643398,41.14081061,120.17,120.14,0.05667645]
[1741661643595,49.4055,120.17,120.12,8.3283]
[1741661643792,41.13873865,120.17,120.14,0.05617182]
[1741661643992,4.2791,120.19,120.11,41.08]
[1741661644292,0.05742548,120.17,120.14,0.0595481]
[1741661645702,0.05742548,120.17,120.14,8.3868481]
[1741661645899,0.05742548,120.17,120.14,0.0595481]
[1741661646299,0.05742548,120.17,120.15,8.3269]
[1741661646495,0.05742548,120.17,120.14,0.0595481]
[1741661647200,0.05742548,120.17,120.16,8.3262]
[1741661647503,41.08,120.23,120.15,41.08]
[1741661647702,41.08,120.23,120.17,8.3252]
[1741661647904,27.36784863,120.22,120.15,41.08]
[1741661648600,27.4264271,120.2,120.17,0.05319561]
[1741661648996,8.3241,120.19,120.17,0.05319561]
[1741661649604,35.7501271,120.2,120.17,0.05319561]
[1741661649804,27.4264271,120.2,120.17,0.05319561]
[1741661649999,8.3248,120.18,120.17,0.05319561]
[1741661651100,8.3258,120.17,120.13,4.2407]
[1741661651307,27.36784863,120.18,120.13,8.328]
[1741661651501,41.06,120.19,120.12,2.006]
[1741661651502,47.2379,120.19,120.12,2.006]
[1741661651702,68.42784863,120.22,120.12,2.006]
[1741661651898,74.60574863,120.24,120.13,27.36784863]
[1741661652103,8.3202,120.25,120.15,27.36784863]
[1741661652405,29.45514863,120.28,120.22,8.3214]
[1741661652605,8.3188,120.27,120.2,41.06]
[1741661653195,301.94784863,120.3,120.2,41.06]
[1741661653400,0.05783932,120.25,120.22,0.05917591]
[1741661653609,0.05783932,120.25,120.21,4.1686]
[1741661653798,0.05783932,120.25,120.24,8.3206]
[1741661654106,0.05783932,120.25,120.22,0.06365682]
[1741661654302,0.05783932,120.25,120.22,8.38545682]
[1741661654704,0.05783932,120.25,120.22,0.06365682]
[1741661654905,0.05783932,120.25,120.22,8.38545682]
[1741661655205,0.05783932,120.25,120.22,0.06365682]
[1741661655404,0.05783932,120.25,120.23,8.3213]
[1741661655803,0.05783932,120.25,120.22,0.06365682]
[1741661656402,27.36784863,120.3,120.22,0.06365682]
[1741661656603,8.3176,120.29,120.23,8.3211]
[1741661657303,35.68454863,120.3,120.24,8.3206]
[1741661657605,0.05852471,120.27,120.25,0.05647741]
[1741661659010,0.05852471,120.27,120.25,8.37597741]
[1741661659210,0.05852471,120.27,120.25,0.05647741]
[1741661660309,8.37752471,120.27,120.25,0.05647741]
[1741661660610,0.05852471,120.27,120.25,0.05647741]
[1741661660803,8.3193,120.26,120.25,0.05647741]
[1741661661008,8.3193,120.26,120.18,193.0361]
[1741661661009,70.52144863,120.26,120.18,193.0361]
[1741661661210,70.52144863,120.26,120.18,2.0361]
[1741661662009,70.52144863,120.26,120.21,8.3222]
[1741661662198,0.0558131,120.23,120.21,0.06189789]
[1741661662401,0.0558131,120.23,120.21,8.38429789]
[1741661662709,0.0558131,120.23,120.21,0.06189789]
[1741661663107,0.0558131,120.23,120.22,8.322]
[1741661663307,0.0558131,120.23,120.21,0.06189789]
[1741661663712,0.0558131,120.23,120.22,8.322]
[1741661664110,0.0558131,120.23,120.21,0.06189789]
[1741661664312,0.0558131,120.23,120.21,8.38429789]
[1741661664507,0.0558131,120.23,120.21,0.06189789]
[1741661666213,8.3773131,120.23,120.21,0.06189789]
[1741661666416,0.0558131,120.23,120.21,0.06189789]
[1741661666812,29.46754863,120.3,120.21,41.06189789]
[1741661667107,29.46754863,120.3,120.21,41.0]
[1741661667108,2.0997,120.3,120.21,41.0]
[1741661667313,8.3175,120.29,120.25,8.3196]
[1741661667615,2.0997,120.3,120.21,41.0]
[1741661667811,8.3184,120.28,120.21,41.0]
[1741661668016,0.05515922,120.27,120.24,0.05465532]
[1741661668317,0.05515922,120.27,120.24,8.37505532]
[1741661668817,0.05515922,120.27,120.24,0.05465532]
[1741661669518,0.05515922,120.27,120.24,8.37495532]
[1741661670111,0.05515922,120.27,120.25,8.3199]
[1741661671020,2.1771,120.32,120.25,41.0]
[1741661671313,2.1771,120.32,120.25,45.1499]
[1741661672320,0.05892092,120.3,120.27,0.05785156]
[1741661672818,8.37582092,120.3,120.27,0.05785156]
[1741661673120,0.05892092,120.3,120.27,0.05785156]
[1741661673711,0.05892092,120.3,120.27,8.37635156]
[1741661674319,8.37562092,120.3,120.27,0.05785156]
[1741661674617,0.05892092,120.3,120.27,0.05785156]
[1741661675417,8.3179,120.28,120.27,0.05785156]
[1741661675914,8.3202,120.25,120.21,10.3163]
[1741661676310,2.1771,120.32,120.21,29.36184863]
[1741661676507,8.3169,120.3,120.24,8.3202]
[1741661677112,0.05680086,120.28,120.26,0.05704577]
[1741661678423,0.05680086,120.28,120.27,8.3186]
[1741661678929,0.05680086,120.28,120.26,0.05704577]
[1741661681324,8.37510086,120.28,120.26,0.05704577]
[1741661681517,49.33510086,120.28,120.26,0.05704577]
[1741661681922,41.01680086,120.28,120.26,0.05704577]
[1741661684633,0.05680086,120.28,120.26,0.05704577]
[1741661684833,0.05680086,120.28,120.27,8.3186]
[1741661688831,0.05680086,120.28,120.26,8.37604577]
[1741661689628,0.05680086,120.28,120.26,0.05704577]
[1741661690028,8.3186,120.27,120.26,0.05704577]
[1741661691132,0.05680086,120.28,120.26,0.05704577]
[1741661691331,8.37510086,120.28,120.26,0.05704577]
[1741661691726,0.05680086,120.28,120.26,0.05704577]
[1741661692328,0.05680086,120.28,120.26,8.37574577]
[1741661692532,0.05680086,120.28,120.26,0.05704577]
[1741661692730,8.37470086,120.28,120.26,0.05704577]
[1741661694331,8.3186,120.27,120.26,0.05704577]
[1741661694830,27.36784863,120.27,120.2,4.3149]
[1741661695226,27.36784863,120.27,120.22,8.322]
[1741661695828,0.05471306,120.26,120.23,0.05239273]
[1741661696029,8.3203,120.25,120.23,0.05239273]
[1741661696230,0.05471306,120.26,120.23,0.05239273]
[1741661698035,0.05471306,120.26,120.23,8.37339273]
[1741661698833,0.05471306,120.26,120.23,0.05239273]
[1741661699838,40.9,120.25,120.23,0.05239273]
[1741661700228,68.26784863,120.25,120.17,91.76996574]
[1741661700433,27.36784863,120.23,120.17,91.76996574]
[1741661701431,0.05446155,120.21,120.19,0.06304736]
[1741661701734,27.36784863,120.19,120.16,161.01431498]
[1741661702037,27.36784863,120.17,120.14,264.40027506]
[1741661702331,27.36784863,120.15,120.11,237.33877928]
[1741661702537,40.9,120.14,120.11,237.33877928]
[1741661702730,40.9604456,120.14,120.12,0.05820119]
[1741661702933,8.329,120.12,120.11,178.73150823]
[1741661703130,8.329,120.12,120.11,23.45520689]
[1741661703332,8.3296,120.11,120.1,94.55613745]
[1741661703533,35.69744863,120.11,120.1,94.55613745]
[1741661703734,38.19744863,120.11,120.1,94.55613745]
[1741661703934,27.36784863,120.11,120.1,94.55613745]
[1741661704134,68.26784863,120.11,120.1,94.55613745]
[1741661704933,40.9,120.11,120.1,94.55613745]